[Event "1000 GM Labor Day Super Swiss 2024"]
[Site "San Jose"]
[Date "2024.09.03"]
[Round "7.1"]
[White "Macovei, Andrei"]
[Black "Cordova, Emilio"]
[Result "1/2-1/2"]
[Annotator "TA"]
[ECO "B07"]
[WhiteElo "2466"]
[BlackElo "2519"]
[PlyCount "30"]
[EventDate "2024.08.30"]
[EventType "swiss"]
[EventCountry "USA"]
[SourceTitle "playchess.com"]
[Source "ChessBase"]
[SourceQuality "1"]
[TimeControl "5400+30"]

{[%evp 16,30,64,19,38,16,19,27,40,45,56,0,8,0,46,0,27]} 1. e4 {[%emt 0:00:13]} Nc6 {[%emt 0:02:57]} 2. Nf3 {[%emt 0:01:02]} d6 {[%emt 0:00:22]} 3. d4 {[%emt 0:01:06]} Nf6 {[%emt 0:00:11]} 4. c3 {[%emt 0:00:24]} g6 {[%emt 0:00:43]} 5. Bd3 {[%emt 0:00:12]} Bg7 {[%emt 0:00:09]} 6. O-O {[%emt 0:00:13]} O-O {[%emt 0:00:22]} 7. Re1 {[%emt 0:00:37]} e5 {[%emt 0:07:34]} 8. h3 {[%emt 0:00:12]} Re8 {[%emt 0:04:27]} 9. Na3 {[%emt 0:13:38]} h6 {[%emt 0:08:36]} 10. Nc2 {[%emt 0:04:32]} a5 {[%emt 0:06:28]} 11. a4 {[%emt 0:02:19]} Bd7 {[%emt 0:02:22] White has an edge.} 12. Bd2 {[%emt 0:05:41]} Nh5 {[%emt 0:13:18]} 13. Bb5 {[%emt 0:04:52]} (13. b3 $14) 13... Nf6 $11 {[%emt 0:02:05]} 14. Bd3 {[%emt 0:08:09]} Nh5 {[%emt 0:01:30]} 15. Bb5 {[%emt 0:05:42]} Nf6 {[%emt 0:00:17] Weighted Error Value: White=0.26 (precise) /Black=0.06 (flawless) .  Mistake:       	White=1     	---        OK:         	---       	Black=4} 1/2-1/2

[Event "1000 GM Labor Day Super Swiss 2024"]
[Site "San Jose"]
[Date "2024.09.03"]
[Round "7.2"]
[White "Koustav Chatterjee"]
[Black "Quesada Perez, Yasser"]
[Result "0-1"]
[Annotator "TA"]
[ECO "D02"]
[WhiteElo "2524"]
[BlackElo "2581"]
[PlyCount "96"]
[EventDate "2024.08.30"]
[EventType "swiss"]
[EventCountry "USA"]
[SourceTitle "playchess.com"]
[Source "ChessBase"]
[SourceQuality "1"]
[TimeControl "5400+30"]

{[%evp 23,96,23,31,27,21,25,21,16,18,18,15,20,17,22,19,12,18,8,12,12,19,24,24,28,28,28,27,20,26,20,21,25,19,23,27,4,212,211,204,70,68,83,66,-30,85,-91,-84,-291,-296,-619,-350,-326,-227,-659,-566,-583,-629,-605,-569,-381,-417,-313,-28,-1363,-583,-1369,-1287,-956,-1456,-1037,-1032,-1555,-1560,-1738,-1354]} 1. Nf3 {[%emt 0:01:57]} Nf6 {[%emt 0:00:32]} 2. g3 {[%emt 0:00:05]} d5 {[%emt 0:00:42]} 3. Bg2 {[%emt 0:00:06]} c6 {[%emt 0:00:47]} 4. O-O {[%emt 0:00:14]} Bg4 {[%emt 0:00:05]} 5. d4 {[%emt 0:01:19]} Nbd7 {[%emt 0:01:29]} 6. Nbd2 {[%emt 0:02:50]} e6 {[%emt 0:00:38]} 7. Re1 {[%emt 0:00:07]} Be7 {[%emt 0:04:32]} 8. e4 {[%emt 0:00:30]} dxe4 {[%emt 0:00:30]} 9. Nxe4 {[%emt 0:00:06]} Nxe4 {[%emt 0:00:19]} 10. Rxe4 {[%emt 0:00:05]} Nf6 {[%emt 0:00:10]} 11. Re1 {[%emt 0:00:36]} O-O {[%emt 0:00:49]} 12. c3 {[%emt 0:00:46]} Qb6 {[%emt 0:16:15]} 13. h3 {[%emt 0:08:30]} Bxf3 {[%emt 0:00:30]} 14. Bxf3 {[%emt 0:03:22]} Rfd8 {[%emt 0:01:34]} 15. Qc2 {[%emt 0:04:49] The position is equal.} Rd7 {[%emt 0:01:38]} 16. Kg2 {[%emt 0:00:48]} a5 {[%emt 0:03:29]} 17. h4 {[%emt 0:07:44]} Rad8 {[%emt 0:03:52]} 18. a3 {[%emt 0:04:58]} Qa6 {[%emt 0:04:06]} 19. Bg5 {[%emt 0:16:08]} h6 {[%emt 0:04:01]} 20. Be2 {[%emt 0:04:45]} Qb6 {[%emt 0:02:41]} 21. Bxf6 {[%emt 0:05:53]} Bxf6 {[%emt 0:00:12]} 22. b4 {[%emt 0:00:04]} Qc7 {[%emt 0:06:33]} 23. Qe4 {[%emt 0:05:18]} Qd6 {[%emt 0:01:01] Black is weak on the light squares} 24. Bc4 {[%emt 0:00:13]} b6 {[%emt 0:03:51]} 25. Re3 {[%emt 0:01:35]} Ra7 {[%emt 0:01:04]} 26. Rae1 {[%emt 0:01:47]} axb4 {[%emt 0:05:03]} 27. axb4 {[%emt 0:00:10]} Ra3 {[%emt 0:00:17]} 28. Qc2 {[%emt 0:05:23][%cal Re3e6] Rxe6! would now be deadly.} Re8 {[%emt 0:20:57]} 29. f4 {[%emt 0:10:13][%cal Bf2f4,Bf4f5][%mdl 32]} h5 $2 {[%emt 0:00:29]} (29... Re7 $11 {and Black stays safe.}) 30. f5 $1 $18 {[%emt 0:07:59]} e5 {[%emt 0:00:05]} 31. Qe2 {[%emt 0:00:10]} (31. Qb2 $1 $18 {[%cal Rb2a3]} Ra7 32. Qe2) 31... b5 $1 $14 {[%emt 0:02:32]} 32. Ba2 {[%emt 0:02:11]} (32. dxe5 {simplifies} Rxe5 33. Rxe5 Bxe5 34. Qxe5 Qxe5 35. Rxe5 bxc4 36. Re8+) 32... Re7 {[%emt 0:11:53][%cal Oe5d4] aiming for ...exd4!} 33. Bb1 {[%emt 0:00:35]} (33. dxe5 $14 Rxe5 34. Rxe5 Bxe5 35. Kh3) 33... Qd5+ {[%emt 0:00:31]} (33... exd4 $2 34. Rxe7 Bxe7 35. Qxe7 $18) (33... Rxc3 $1 $11 34. Rxc3 exd4 (34... Qxb4 $2 35. Rxc6 Re8 36. d5 $18) 35. Qxe7 Bxe7) 34. Kh3 $2 {[%emt 0:01:23]} (34. Qf3 $1 $16 {stays on course.}) 34... Rxc3 $1 $17 {[%emt 0:00:59] Black is more active.} 35. Rxc3 {[%emt 0:02:42]} (35. Be4 $17 Rxe3 (35... Qxd4 36. Rxc3 Qxc3 37. Rd1 $17) 36. Qxe3 exd4 (36... Qxd4 37. Bxc6 Qg4+ 38. Kh2 $17) 37. Qf3) 35... exd4 $19 {[%emt 0:00:01][%cal Oe7e2]} (35... Qxd4 $2 {perishes.} 36. Rd1 $18 (36. Rxc6 Re8 $18)) 36. Be4 $2 {[%emt 0:00:00]} (36. Qxe7 Bxe7 37. Be4) 36... Rxe4 {[%emt 0:01:49]} 37. Qxe4 {[%emt 0:00:03]} dxc3 {[%emt 0:00:14]} 38. Qxd5 {[%emt 0:02:48]} (38. Qe2 Qxf5+ 39. Kg2) 38... cxd5 {[%emt 0:00:04][%mdl 4096] Endgame. KR-KB} 39. Kg2 {[%emt 0:00:03] [#]} d4 $1 {[%emt 0:00:38]} 40. Kf3 {[%emt 0:00:06]} d3 {[%emt 0:00:22]} 41. Ke3 {[%emt 0:00:36]} d2 {[%emt 0:00:07]} 42. Ra1 {[%emt 0:00:01] [#]} Be7 $2 {[%emt 0:01:23]} (42... Kh7 $1 $19 {( -> ...c2)} 43. Rf1 Be7) 43. Kd3 {[%emt 0:01:38][%mdl 8192]} (43. Ra8+ $11 Kh7 44. Ke2) 43... Bxb4 {[%emt 0:00:13] Black is clearly winning.} 44. Kc2 {[%emt 0:00:22]} Bd6 {[%emt 0:01:29]} 45. Ra8+ {[%emt 0:00:06]} Kh7 {[%emt 0:00:03]} 46. Rd8 {[%emt 0:00:22]} Bxg3 {[%emt 0:00:53]} 47. Kxc3 {[%emt 0:01:31]} Bxh4 {[%emt 0:00:05]} 48. Rd7 {[%emt 0:00:04]} Be1 {[%emt 0:00:52] Weighted Error Value: White=0.59/Black=0.35.  Loses game:     	White=2     	Black=1      Missed win:     	---       	Black=1      Mistake:       	White=5     	Black=1      Inaccurate:     	---       	Black=1      OK:         	White=9     	Black=9      Best:        	White=1     	Black=4      Strong:       	---       	Black=2} 0-1

[Event "1000 GM Labor Day Super Swiss 2024"]
[Site "San Jose"]
[Date "2024.09.03"]
[Round "7.3"]
[White "Sheng, Joshua"]
[Black "Corrales Jimenez, Fidel"]
[Result "1/2-1/2"]
[Annotator "TA"]
[ECO "B92"]
[WhiteElo "2474"]
[BlackElo "2564"]
[PlyCount "83"]
[EventDate "2024.08.30"]
[EventType "swiss"]
[EventCountry "USA"]
[SourceTitle "playchess.com"]
[Source "ChessBase"]
[SourceQuality "1"]
[TimeControl "5400+30"]

{[%evp 13,83,0,25,25,39,43,43,41,38,26,70,0,0,-29,-24,-34,-47,-31,-40,-14,0,0,0,0,0,-16,-16,-31,-31,-29,-20,-20,-18,-19,0,0,0,-9,-18,0,0,0,0,0,0,0,0,0,0,0,0,-8,-11,-4,-8,-6,-2,-5,-6,-10,0,0,0,-8,0,-16,-16,-16,-10,-16,-14,-54]} 1. e4 {[%emt 0:00:14]} c5 {[%emt 0:08:56]} 2. Nf3 {[%emt 0:00:05]} d6 {[%emt 0:00:06]} 3. d4 {[%emt 0:00:04]} cxd4 {[%emt 0:00:08]} 4. Nxd4 {[%emt 0:00:02]} Nf6 {[%emt 0:00:04]} 5. Nc3 {[%emt 0:00:03]} a6 {[%emt 0:00:04]} 6. Be2 {[%emt 0:00:03]} e5 {[%emt 0:00:36]} 7. Nf3 {[%emt 0:00:03]} h6 {[%emt 0:00:57]} 8. Nd2 {[%emt 0:00:23]} b5 {[%emt 0:03:35][%cal Bb7b5,Bb5b4][%mdl 32]} 9. a4 {[%emt 0:01:56]} b4 {[%emt 0:00:09]} 10. Nd5 {[%emt 0:00:44] White is slightly better.} Nxd5 {[%emt 0:02:51]} 11. exd5 {[%emt 0:00:03]} Be7 {[%emt 0:01:13]} 12. Nc4 {[%emt 0:02:39]} ({White should try} 12. a5 $1 $14) 12... a5 $1 $11 {[%emt 0:01:04]} 13. f4 {[%emt 0:02:16]} Nd7 {[%emt 0:06:42]} 14. Be3 {[%emt 0:11:21]} O-O {[%emt 0:08:38]} 15. O-O {[%emt 0:09:04]} Ba6 {[%emt 0:04:48]} 16. fxe5 {[%emt 0:00:48]} Bxc4 {[%emt 0:03:40]} 17. Bxc4 {[%emt 0:00:27]} Nxe5 {[%emt 0:00:15]} 18. Bb5 {[%emt 0:00:05]} Bf6 {[%emt 0:00:10]} 19. Bd4 {[%emt 0:03:50]} Nd7 {[%emt 0:01:07]} 20. Kh1 {[%emt 0:06:42]} Bxd4 {[%emt 0:00:17]} 21. Qxd4 {[%emt 0:00:03]} Rc8 {[%emt 0:00:45]} 22. Rac1 {[%emt 0:01:06] The position is equal.} Qb6 {[%emt 0:06:19]} 23. Qd2 {[%emt 0:01:43]} Ne5 {[%emt 0:01:10]} 24. c3 {[%emt 0:03:17]} bxc3 {[%emt 0:16:29]} 25. Rxc3 {[%emt 0:00:12]} Rxc3 {[%emt 0:00:08]} 26. Qxc3 {[%emt 0:00:02]} Ra8 {[%emt 0:00:12]} 27. b4 {[%emt 0:03:08]} axb4 {[%emt 0:02:44]} 28. Qxb4 {[%emt 0:00:03]} g6 {[%emt 0:16:32]} 29. h3 {[%emt 0:01:45]} Kg7 {[%emt 0:00:07]} 30. Kh2 {[%emt 0:18:02]} h5 {[%emt 0:01:08]} 31. Rd1 {[%emt 0:03:09]} f5 {[%emt 0:04:42]} 32. Qd4 {[%emt 0:03:47]} Qxd4 {[%emt 0:05:03]} 33. Rxd4 {[%emt 0:00:04][%mdl 4096] Endgame. KRB-KRN} Kf6 {[%emt 0:00:04]} 34. h4 {[%emt 0:03:36]} g5 {[%emt 0:02:37]} 35. hxg5+ {[%emt 0:00:17]} Kxg5 {[%emt 0:00:03]} 36. Rd1 {[%emt 0:01:07]} h4 {[%emt 0:00:44]} 37. Ra1 {[%emt 0:00:49]} Ra5 {[%emt 0:00:08]} 38. Rc1 {[%emt 0:01:06]} Ra7 {[%emt 0:00:35]} 39. Rc8 {[%emt 0:01:06]} Kf4 {[%emt 0:00:27]} 40. Kh3 {[%emt 0:01:22]} Ng4 {[%emt 0:01:17]} 41. Rc4+ {[%emt 0:00:24]} Ke5 {[%emt 0:00:20]} 42. Bc6 {[%emt 0:07:57] Weighted Error Value: White=0.06 (flawless) /Black=0.04 (flawless) .  Mistake:       	White=1     	---        Inaccurate:     	White=2     	Black=1      OK:         	White=10    	Black=18     Best:        	White=1     	---        Strong:       	---       	Black=1} 1/2-1/2

[Event "1000 GM Labor Day Super Swiss 2024"]
[Site "San Jose"]
[Date "2024.09.03"]
[Round "7.4"]
[White "Atwell, Rose"]
[Black "Mikaelyan, Arman"]
[Result "0-1"]
[Annotator "TA"]
[ECO "B08"]
[WhiteElo "2208"]
[BlackElo "2529"]
[PlyCount "80"]
[EventDate "2024.08.30"]
[EventType "swiss"]
[EventCountry "USA"]
[SourceTitle "playchess.com"]
[Source "ChessBase"]
[SourceQuality "1"]
[TimeControl "5400+30"]

{[%evp 12,80,40,29,62,67,63,43,44,29,64,68,102,35,50,48,31,38,78,61,56,54,48,58,62,62,54,38,64,61,56,47,37,0,0,0,0,0,0,0,20,-28,0,0,0,-44,-52,-59,0,-69,-65,-67,-54,-122,-48,-56,-66,-179,-188,-297,-243,-586,-578,-538,-526,-514,-530,-810,-798,-2520,-2047]} 1. e4 {[%emt 0:00:01]} g6 {[%emt 0:04:15]} 2. d4 {[%emt 0:00:06]} Bg7 {[%emt 0:00:05]} 3. Nc3 {[%emt 0:00:18]} d6 {[%emt 0:00:14]} 4. Nf3 {[%emt 0:00:05][%cal Bg1f3,Bf3e5,Be5c6][%mdl 32]} Nf6 {[%emt 0:00:33]} 5. Be2 {[%emt 0:02:00]} O-O {[%emt 0:00:19]} 6. O-O {[%emt 0:00:05]} a6 {[%emt 0:01:06]} 7. Re1 {[%emt 0:04:09]} b5 {[%emt 0:05:19]} 8. e5 {[%emt 0:08:13]} dxe5 {[%emt 0:05:48]} 9. Nxe5 {[%emt 0:10:23]} Bb7 {[%emt 0:02:54] White is slightly better.} 10. Bf3 {[%emt 0:01:33]} Qc8 {[%emt 0:00:41]} 11. Bg5 {[%emt 0:04:18]} h6 {[%emt 0:13:34] [#]} 12. Be3 {[%emt 0:21:11]} (12. Bxf6 $1 $16 Bxf6 13. Qd3 Bxf3 14. Qxf3) 12... Rd8 {[%emt 0:03:34]} 13. Qe2 {[%emt 0:02:21][%cal Oe3h6] Hoping for Bxh6!} Nbd7 {[%emt 0:14:37]} 14. Nc6 {[%emt 0:04:35]} Re8 {[%emt 0:02:07]} 15. Qd2 {[%emt 0:07:23]} Kh7 {[%emt 0:02:03]} 16. Bf4 $1 {[%emt 0:01:58]} e6 {[%emt 0:01:29]} 17. h4 {[%emt 0:03:25]} Nb6 {[%emt 0:05:33]} 18. b3 {[%emt 0:04:22] Against Nc4} b4 {[%emt 0:01:34]} 19. Ne4 {[%emt 0:01:17]} (19. Nxb4 Bxf3 20. gxf3 Qb7 $11) 19... Nxe4 {[%emt 0:06:52]} 20. Bxe4 {[%emt 0:00:04]} Qd7 {[%emt 0:03:40]} 21. Ne5 {[%emt 0:02:09]} (21. Nxb4 {simplifies} Bxe4 22. Rxe4 a5 23. Nd3) 21... Bxe5 {[%emt 0:00:34]} 22. Bxe5 {[%emt 0:02:20]} Bxe4 {[%emt 0:00:40]} 23. Rxe4 {[%emt 0:00:09]} Nd5 {[%emt 0:00:43]} 24. h5 {[%emt 0:01:55] And now hxg6+ would win.} g5 {[%emt 0:01:00]} 25. Qd3 {[%emt 0:01:33]} f5 {[%emt 0:01:47] [#]} 26. Rae1 {[%emt 0:03:51]} Qb5 {[%emt 0:06:51] ...Qxd3 is the strong threat.} (26... fxe4 $2 27. Qxe4+ Kg8 28. Qg6+ Kf8 29. Qxh6+ Ke7 30. Qxg5+ Kf8 31. Re3 $18) (26... Qf7 $5 27. Qf3 Re7 $15 (27... g4 $2 28. Rxg4 Rg8 29. Rxg8 $18)) 27. Qf3 {[%emt 0:01:08][%cal Oe5h2] Strongly threatening Bh2!} Qc6 {[%emt 0:02:23][%cal Oc6c2]} 28. c4 {[%emt 0:06:37]} bxc3 {[%emt 0:00:35][%cal Oa6a5]} (28... fxe4 29. Qf7#) 29. Rc1 {[%emt 0:00:34]} Ne7 {[%emt 0:04:55]} (29... fxe4 30. Qf7#) (29... Re7 $15 30. Re3 Qe8) 30. Re3 {[%emt 0:03:05]} ({White should try} 30. d5 $1 $11 Qxd5 (30... fxe4 31. Qf7#) 31. Rce1) 30... Qxf3 $15 {[%emt 0:00:07]} 31. Rxf3 {[%emt 0:00:04]} Nd5 $36 {[%emt 0:00:06][%mdl 2048] Black is more active.} 32. g4 {[%emt 0:00:08]} Rf8 {[%emt 0:01:11]} (32... fxg4 $2 33. Rf7+ Kg8 34. Rg7+ Kf8 35. Rh7 $18) (32... Rac8 $17 33. Rfxc3 (33. gxf5 exf5 34. Rxf5 Kg8 $17) 33... Nxc3 34. Rxc3 c6 (34... fxg4 35. b4 $15)) 33. gxf5 {[%emt 0:01:08]} Rxf5 {[%emt 0:00:38]} 34. Rxf5 {[%emt 0:00:41]} (34. Rfxc3 $15 Nxc3 35. Rxc3) 34... exf5 {[%emt 0:00:07][%mdl 4096] Endgame. KRB-KRN} 35. Kg2 {[%emt 0:02:13]} (35. Kf1 $142) 35... Kg8 {[%emt 0:01:33]} 36. f4 $2 {[%emt 0:01:00]} (36. Kf1 {is more resistant.}) 36... g4 $19 {[%emt 0:01:05] Black is clearly winning.} (36... Nxf4+ $2 {too greedy.} 37. Bxf4 gxf4 38. Rxc3 $16) 37. Kf2 {[%emt 0:02:38]} Kf7 {[%emt 0:02:15]} 38. Ke2 {[%emt 0:00:30]} Rg8 {[%emt 0:00:09]} 39. b4 {[%emt 0:00:00]} g3 {[%emt 0:00:25][%cal Og3g2]} (39... Nxb4 40. Rxc3 Nd5 (40... Nxa2 41. Rxc7+ Ke6 42. Rc6+ Kd5 43. Rxh6 $11) 41. Rc5 $17) 40. Kf3 {[%emt 0:00:00]} g2 {[%emt 0:00:40] Weighted Error Value: White=0.59/Black=0.16 (very precise) .  Mistake:       	White=7     	Black=2      Inaccurate:     	White=4     	Black=5      OK:         	White=6     	Black=17     Best:        	---       	Black=2      Strong:       	White=1     	---} 0-1

[Event "1000 GM Labor Day Super Swiss 2024"]
[Site "San Jose"]
[Date "2024.09.03"]
[Round "7.5"]
[White "Schitco, Ivan"]
[Black "Delgado Ramirez, Neuris"]
[Result "1/2-1/2"]
[Annotator "TA"]
[ECO "A13"]
[WhiteElo "2518"]
[BlackElo "2485"]
[PlyCount "113"]
[EventDate "2024.08.30"]
[EventType "swiss"]
[EventCountry "USA"]
[SourceTitle "playchess.com"]
[Source "ChessBase"]
[SourceQuality "1"]
[TimeControl "5400+30"]

{[%evp 26,113,41,38,43,11,25,0,14,0,10,0,15,10,28,16,12,28,27,0,0,0,0,0,0,-8,-17,0,0,0,0,0,0,-6,0,-16,-4,-11,0,0,0,0,0,-8,0,-9,0,0,0,0,0,0,0,0,0,0,0,0,0,-18,10,0,0,0,14,9,82,38,93,0,0,0,0,0,0,0,0,0,0,0,0,0,0,0,0,-8,0,0,0,-8]} 1. c4 {[%emt 0:01:26]} e6 {[%emt 0:20:32]} 2. g3 {[%emt 0:00:46]} d5 {[%emt 0:00:07]} 3. Bg2 {[%emt 0:00:05]} Nf6 {[%emt 0:00:07]} 4. Nf3 {[%emt 0:00:10]} dxc4 {[%emt 0:00:14]} 5. Qa4+ {[%emt 0:00:20]} Bd7 {[%emt 0:00:10]} 6. Qxc4 {[%emt 0:00:06] A13: English Opening: 1...e6.} c5 {[%emt 0:00:04]} 7. Ne5 {[%emt 0:00:09]} Qc8 {[%emt 0:00:11]} 8. Qd3 $1 {[%emt 0:00:26] 8.Qd3 scores better than 8.0-0.} Bc6 {[%emt 0:04:48]} 9. Nxc6 {[%emt 0:00:10]} Nxc6 {[%emt 0:00:11]} 10. Qb5 {[%emt 0:00:33]} Be7 {[%emt 0:00:09]} 11. Bxc6+ {[%emt 0:00:24]} bxc6 {[%emt 0:00:03]} 12. Qa4 {[%emt 0:02:15]} O-O $146 {[%emt 0:03:30]} ({Predecessor:} 12... e5 13. d3 h5 14. Bg5 Rb8 15. Nd2 Rxb2 16. Nc4 Rb4 17. Qxa7 e4 18. Bxf6 gxf6 {0-1 Pantsulaia,L (2535)-Danielyan,V (2331) Titled Tuesday intern op 02nd Apr Early blitz 2024 (4)}) 13. d3 {[%emt 0:02:12]} Rd8 {[%emt 0:00:58]} 14. Nd2 {[%emt 0:01:32]} e5 {[%emt 0:02:37]} 15. Nf3 {[%emt 0:13:27]} Qe6 {[%emt 0:07:16]} 16. Qb3 {[%emt 0:13:36]} Nd5 {[%emt 0:03:54]} 17. Qc4 {[%emt 0:03:24]} Rab8 {[%emt 0:02:01]} 18. a3 {[%emt 0:00:14]} f6 {[%emt 0:05:20]} 19. Rb1 {[%emt 0:06:03]} Nc7 {[%emt 0:01:20]} 20. Qxe6+ {[%emt 0:04:59]} Nxe6 {[%emt 0:00:06]} 21. Nd2 {[%emt 0:02:59]} Nd4 {[%emt 0:01:27]} 22. e3 {[%emt 0:04:55]} Nb3 {[%emt 0:01:18]} 23. Ke2 {[%emt 0:00:31]} Rd7 {[%emt 0:01:58]} 24. Rd1 {[%emt 0:04:28]} Na5 {[%emt 0:02:42]} 25. g4 {[%emt 0:04:48]} Kf7 {[%emt 0:02:23]} 26. Ne4 {[%emt 0:07:50]} c4 {[%emt 0:00:55]} 27. dxc4 {[%emt 0:00:46]} Rxd1 {[%emt 0:00:11]} 28. Kxd1 {[%emt 0:00:04]} Nxc4 {[%emt 0:00:54]} 29. Kc2 {[%emt 0:00:07]} Nd6 {[%emt 0:02:47]} 30. Ng3 {[%emt 0:00:38]} g6 {[%emt 0:00:54]} 31. Bd2 {[%emt 0:02:19]} Nc4 {[%emt 0:01:20]} 32. Bc3 {[%emt 0:01:26]} Ke6 {[%emt 0:03:01]} 33. Rg1 {[%emt 0:01:50]} Nb6 {[%emt 0:01:39]} 34. Re1 {[%emt 0:04:02]} Nd5 {[%emt 0:02:42]} 35. f4 {[%emt 0:02:45]} exf4 {[%emt 0:00:35]} 36. exf4+ {[%emt 0:00:04]} Kf7 {[%emt 0:00:24]} 37. Bd2 {[%emt 0:00:43]} Bd6 {[%emt 0:00:35]} 38. Re4 {[%emt 0:00:35]} Re8 {[%emt 0:30:07]} 39. Ra4 {[%emt 0:01:00]} Bb8 {[%emt 0:00:00]} 40. Kd3 {[%emt 0:01:16]} Nb6 {[%emt 0:00:00]} 41. Ra6 {[%emt 0:01:18]} c5 {[%emt 0:00:00]} 42. f5 {[%emt 0:08:04]} Re7 {[%emt 0:00:00]} 43. Bc3 {[%emt 0:02:49]} gxf5 {[%emt 0:00:00]} 44. gxf5 {[%emt 0:00:31]} Rd7+ {[%emt 0:00:00]} 45. Ke2 {[%emt 0:00:44]} Rd5 {[%emt 0:00:00]} (45... Nd5 $11 {remains equal.}) 46. a4 $16 {[%emt 0:01:38]} Nd7 {[%emt 0:00:00]} ({Black should play} 46... Ke7 $14) 47. Ne4 {[%emt 0:01:19]} (47. Kf3 $16) 47... Rxf5 $11 {[%emt 0:00:00]} 48. Nd6+ {[%emt 0:00:21]} Bxd6 {[%emt 0:00:00]} 49. Rxd6 {[%emt 0:00:01]} Ke7 {[%emt 0:00:00]} 50. Ra6 {[%emt 0:00:07]} Rh5 {[%emt 0:00:00]} 51. Rxa7 {[%emt 0:00:14]} Rxh2+ {[%emt 0:00:00]} 52. Kf3 {[%emt 0:00:28]} Kd6 {[%emt 0:00:00]} 53. a5 {[%emt 0:00:35]} Rh4 {[%emt 0:00:00]} 54. Ra6+ {[%emt 0:00:34]} Kd5 {[%emt 0:00:00]} 55. Ra7 {[%emt 0:00:51]} Kc6 {[%emt 0:00:00]} 56. Ra6+ {[%emt 0:00:25]} Kd5 {[%emt 0:00:00]} 57. Ra7 {[%emt 0:03:38]} 1/2-1/2

[Event "1000 GM Labor Day Super Swiss 2024"]
[Site "San Jose"]
[Date "2024.09.03"]
[Round "7.6"]
[White "Chen, Ryo"]
[Black "Harsha Bharathakoti"]
[Result "1/2-1/2"]
[Annotator "TA"]
[ECO "C70"]
[WhiteElo "2408"]
[BlackElo "2550"]
[PlyCount "45"]
[EventDate "2024.08.30"]
[EventType "swiss"]
[EventCountry "USA"]
[SourceTitle "playchess.com"]
[Source "ChessBase"]
[SourceQuality "1"]
[TimeControl "5400+30"]

{[%evp 9,45,47,58,5,44,39,41,39,32,44,39,53,39,51,43,48,43,33,38,36,36,32,47,27,54,36,52,31,75,18,28,25,27,21,44,17,14,14]} 1. e4 {[%emt 0:00:01]} e5 {[%emt 0:05:13]} 2. Nf3 {[%emt 0:00:02]} Nc6 {[%emt 0:00:10]} 3. Bb5 {[%emt 0:00:05]} a6 {[%emt 0:00:11]} 4. Ba4 {[%emt 0:00:06]} Nge7 {[%emt 0:00:21]} 5. c3 {[%emt 0:00:56]} Ng6 {[%emt 0:00:23]} 6. h4 {[%emt 0:01:06]} (6. d4 $14) 6... d5 {[%emt 0:00:33]} 7. h5 $1 {[%emt 0:00:38]} dxe4 {[%emt 0:00:17]} (7... Nf4 8. d4 Bg4 (8... dxe4 9. Nxe5 Nd3+ 10. Nxd3 $16) (8... Nxg2+ 9. Kf1 $16) 9. Bxf4 (9. dxe5 Nxg2+ 10. Kf1 Nh4 $17) 9... exf4 10. Qe2 dxe4 11. Qxe4+ Qe7 12. Bxc6+ bxc6 13. Ne5 $16) 8. hxg6 {[%emt 0:00:12] White is slightly better.} exf3 {[%emt 0:00:05]} 9. gxf7+ {[%emt 0:00:20]} (9. Qxf3 fxg6 10. d4 Qf6 $11) (9. Bxc6+ bxc6 10. Qxf3 (10. gxh7 $2 {perishes.} fxg2 11. Rg1 Rxh7 $19) 10... fxg6 $15) 9... Kxf7 {[%emt 0:00:06]} 10. Qxf3+ {[%emt 0:03:47]} ({Much worse is} 10. gxf3 Bf5 $15) 10... Qf6 {[%emt 0:00:04]} 11. Bb3+ {[%emt 0:01:29]} Be6 {[%emt 0:05:48]} 12. Bxe6+ {[%emt 0:01:05]} Kxe6 {[%emt 0:00:05]} 13. Qg4+ {[%emt 0:00:32]} Qf5 {[%emt 0:00:19]} 14. Qxf5+ {[%emt 0:00:18]} Kxf5 {[%emt 0:00:05]} 15. d3 {[%emt 0:00:21]} Be7 {[%emt 0:01:15]} 16. Be3 {[%emt 0:06:18]} Nd8 {[%emt 0:09:43][%cal Bc6d8,Bd8f7,Bf7d6][%mdl 32]} 17. Nd2 {[%emt 0:03:36]} Nf7 {[%emt 0:00:55]} 18. Ne4 {[%emt 0:04:22]} Ke6 {[%emt 0:17:12]} 19. b4 {[%emt 0:21:52] White is more active.} ({White should try} 19. O-O-O $16) 19... Nd6 $11 {[%emt 0:14:01]} 20. Nc5+ {[%emt 0:09:11]} Kf7 {[%emt 0:00:25]} 21. a4 {[%emt 0:01:45]} b6 {[%emt 0:02:56]} 22. Ne4 {[%emt 0:00:37]} Nxe4 {[%emt 0:02:11]} 23. dxe4 {[%emt 0:00:01] Weighted Error Value: White=0.14 (very precise) /Black=0.10 (very precise) .  Mistake:       	White=1     	---        Inaccurate:     	White=1     	Black=3      OK:         	White=8     	Black=5      Best:        	White=1     	Black=3      Strong:       	White=1     	---} 1/2-1/2